[Event "Titled Tuesday Blitz April 26 Late 2022"]
[White "Sadovsky, Artem"]
[Black "De Souza, Cristiano Gomes"]
[WhiteFideId "4155840"]
[BlackFideId "2151758"]
[WhiteElo "2314"]
[BlackElo "2068"]
[Result "1-0"]
[Round "06"]
[TimeControl "180+1"]
[Date "2022.04.26"]
[WhiteClock "0:00:02"]
[BlackClock "0:00:55"]

1. Nf3 {[%clk 0:03:00]}  Nf6 {[%clk 0:02:59]} 2. c4 {[%clk 0:02:59]}  g6 {[%clk 0:03:00]} 3. b3 {[%clk 0:02:59]}  Bg7 {[%clk 0:03:00]} 4. Bb2 {[%clk 0:02:59]}  O-O {[%clk 0:03:01]} 5. e3 {[%clk 0:02:59]}  d6 {[%clk 0:03:01]} 6. d4 {[%clk 0:02:59]}  c5 {[%clk 0:03:01]} 7. Nc3 {[%clk 0:02:51]}  Na6 {[%clk 0:03:01]} 8. Be2 {[%clk 0:02:50]}  Nc7 {[%clk 0:02:59]} 9. O-O {[%clk 0:02:50]}  a6 {[%clk 0:02:59]} 10. dxc5 {[%clk 0:02:39]}  dxc5 {[%clk 0:02:59]} 11. Na4 {[%clk 0:02:40]}  Ne6 {[%clk 0:02:51]} 12. Qxd8 {[%clk 0:02:38]}  Rxd8 {[%clk 0:02:51]} 13. Nb6 {[%clk 0:02:38]}  Rb8 {[%clk 0:02:51]} 14. Be5 {[%clk 0:02:33]}  Nd7 {[%clk 0:02:42]} 15. Bxb8 {[%clk 0:01:54]}  Bxa1 {[%clk 0:02:41]} 16. Ba7 {[%clk 0:01:32]}  Bf6 {[%clk 0:02:31]} 17. Rd1 {[%clk 0:01:26]}  Nxb6 {[%clk 0:02:27]} 18. Rxd8+ {[%clk 0:01:26]}  Nxd8 {[%clk 0:02:24]} 19. Bxb6 {[%clk 0:01:27]}  Ne6 {[%clk 0:02:24]} 20. Nd2 {[%clk 0:01:25]}  Be5 {[%clk 0:02:11]} 21. Ne4 {[%clk 0:01:14]}  Bd6 {[%clk 0:02:09]} 22. Bg4 {[%clk 0:00:51]}  f5 {[%clk 0:02:01]} 23. Nxd6 {[%clk 0:00:51]}  exd6 {[%clk 0:01:58]} 24. Bf3 {[%clk 0:00:51]}  Kf7 {[%clk 0:01:58]} 25. Bd5 {[%clk 0:00:49]}  Ke7 {[%clk 0:01:58]} 26. f4 {[%clk 0:00:41]}  h6 {[%clk 0:01:53]} 27. Kf2 {[%clk 0:00:40]}  Nf8 {[%clk 0:01:47]} 28. Ba5 {[%clk 0:00:14]}  b5 {[%clk 0:01:44]} 29. cxb5 {[%clk 0:00:10]}  axb5 {[%clk 0:01:45]} 30. a4 {[%clk 0:00:10]}  bxa4 {[%clk 0:01:42]} 31. bxa4 {[%clk 0:00:11]}  Bd7 {[%clk 0:01:42]} 32. Bb3 {[%clk 0:00:09]}  Bc6 {[%clk 0:01:42]} 33. Bc3 {[%clk 0:00:06]}  Ne6 {[%clk 0:01:39]} 34. a5 {[%clk 0:00:06]}  Bb5 {[%clk 0:01:39]} 35. Bd5 {[%clk 0:00:03]}  Nc7 {[%clk 0:01:37]} 36. Bb7 {[%clk 0:00:03]}  Na6 {[%clk 0:01:34]} 37. h3 {[%clk 0:00:02]}  Kd7 {[%clk 0:01:33]} 38. g4 {[%clk 0:00:02]}  Kc7 {[%clk 0:01:28]} 39. gxf5 {[%clk 0:00:02]}  gxf5 {[%clk 0:01:25]} 40. Bf3 {[%clk 0:00:01]}  Bc4 {[%clk 0:01:20]} 41. Kg3 {[%clk 0:00:02]}  d5 {[%clk 0:01:20]} 42. Kh4 {[%clk 0:00:02]}  Kc6 {[%clk 0:01:18]} 43. Kh5 {[%clk 0:00:02]}  Kb5 {[%clk 0:01:16]} 44. Kxh6 {[%clk 0:00:03]}  Nb4 {[%clk 0:01:14]} 45. Kg5 {[%clk 0:00:03]}  Bd3 {[%clk 0:01:10]} 46. h4 {[%clk 0:00:02]}  Kc4 {[%clk 0:01:09]} 47. Bd2 {[%clk 0:00:01]}  d4 {[%clk 0:01:05]} 48. h5 {[%clk 0:00:02]}  dxe3 {[%clk 0:01:05]} 49. Bxe3 {[%clk 0:00:03]}  Nd5 {[%clk 0:01:03]} 50. Bd2 {[%clk 0:00:02]}  Ne7 {[%clk 0:01:01]} 51. h6 {[%clk 0:00:02]}  Kd4 {[%clk 0:00:57]} 52. h7 {[%clk 0:00:01]}  c4 {[%clk 0:00:55]} 53. h8=Q+ {[%clk 0:00:01]}  Kc5 {[%clk 0:00:55]} 54. Qe5+ {[%clk 0:00:02]} 1-0


[Site "https://www.chess.com"]

[Event "Titled Tuesday Blitz April 26 Late 2022"]
[White "Smail, Benedict"]
[Black "Kamsky, Gata"]
[WhiteFideId "2050480"]
[BlackFideId "2000024"]
[WhiteElo "2070"]
[BlackElo "2645"]
[Result "0-1"]
[Round "06"]
[TimeControl "180+1"]
[Date "2022.04.26"]
[WhiteClock "0:00:06"]
[BlackClock "0:01:10"]

1. d4 {[%clk 0:03:00]}  f5 {[%clk 0:02:58]} 2. g3 {[%clk 0:03:00]}  Nf6 {[%clk 0:02:58]} 3. Bg2 {[%clk 0:03:00]}  g6 {[%clk 0:02:58]} 4. Nf3 {[%clk 0:03:00]}  Bg7 {[%clk 0:02:59]} 5. O-O {[%clk 0:03:00]}  d6 {[%clk 0:02:59]} 6. c4 {[%clk 0:02:59]}  O-O {[%clk 0:02:59]} 7. Nc3 {[%clk 0:02:43]}  c6 {[%clk 0:02:59]} 8. Bf4 {[%clk 0:02:36]}  a5 {[%clk 0:02:46]} 9. Rc1 {[%clk 0:02:35]}  Na6 {[%clk 0:02:45]} 10. a3 {[%clk 0:02:32]}  Bd7 {[%clk 0:02:41]} 11. Qc2 {[%clk 0:02:32]}  b5 {[%clk 0:02:37]} 12. cxb5 {[%clk 0:02:11]}  cxb5 {[%clk 0:02:35]} 13. Nxb5 {[%clk 0:01:55]}  h6 {[%clk 0:02:13]} 14. Nc3 {[%clk 0:01:44]}  Nc7 {[%clk 0:02:03]} 15. h4 {[%clk 0:01:27]}  Rb8 {[%clk 0:02:01]} 16. e4 {[%clk 0:01:22]}  fxe4 {[%clk 0:01:55]} 17. Nxe4 {[%clk 0:01:20]}  Nxe4 {[%clk 0:01:47]} 18. Qxe4 {[%clk 0:01:08]}  Bf5 {[%clk 0:01:46]} 19. Qc6 {[%clk 0:01:07]}  Ne6 {[%clk 0:01:38]} 20. Be3 {[%clk 0:00:39]}  Rxb2 {[%clk 0:01:33]} 21. d5 {[%clk 0:00:39]}  Nc5 {[%clk 0:01:22]} 22. Bd4 {[%clk 0:00:33]}  Rb6 {[%clk 0:01:20]} 23. Rxc5 {[%clk 0:00:21]}  Rxc6 {[%clk 0:01:19]} 24. Rxc6 {[%clk 0:00:21]}  Be4 {[%clk 0:01:18]} 25. Bxg7 {[%clk 0:00:19]}  Kxg7 {[%clk 0:01:16]} 26. Nd2 {[%clk 0:00:18]}  Bxg2 {[%clk 0:01:13]} 27. Kxg2 {[%clk 0:00:19]}  Qd7 {[%clk 0:01:12]} 28. Rfc1 {[%clk 0:00:16]}  Qf5 {[%clk 0:01:11]} 29. f3 {[%clk 0:00:09]}  Qxd5 {[%clk 0:01:11]} 30. Ne4 {[%clk 0:00:08]}  Qa2+ {[%clk 0:01:10]} 31. R1c2 {[%clk 0:00:06]}  Qxa3 {[%clk 0:01:11]} 32. Rc7 {[%clk 0:00:06]}  Qxf3+ {[%clk 0:01:10]} 0-1


[Site "https://www.chess.com"]

[Event "Titled Tuesday Blitz April 26 Late 2022"]
[White "Spata, German"]
[Black "Kozak, Adam"]
[WhiteFideId "113026"]
[BlackFideId "753246"]
[WhiteElo "2238"]
[BlackElo "2459"]
[Result "0-1"]
[Round "06"]
[TimeControl "180+1"]
[Date "2022.04.26"]
[WhiteClock "0:00:02"]
[BlackClock "0:00:24"]

1. Nf3 {[%clk 0:02:40]}  c5 {[%clk 0:02:57]} 2. e3 {[%clk 0:02:41]}  d5 {[%clk 0:02:56]} 3. b3 {[%clk 0:02:41]}  Nc6 {[%clk 0:02:56]} 4. Bb2 {[%clk 0:02:42]}  Nf6 {[%clk 0:02:56]} 5. Bb5 {[%clk 0:02:41]}  Bd7 {[%clk 0:02:56]} 6. O-O {[%clk 0:02:41]}  g6 {[%clk 0:02:56]} 7. d3 {[%clk 0:02:40]}  Bg7 {[%clk 0:02:55]} 8. Bxc6 {[%clk 0:02:39]}  Bxc6 {[%clk 0:02:55]} 9. Ne5 {[%clk 0:02:40]}  Qc7 {[%clk 0:02:55]} 10. Nd2 {[%clk 0:02:38]}  O-O {[%clk 0:02:53]} 11. Nxc6 {[%clk 0:02:37]}  Qxc6 {[%clk 0:02:52]} 12. Nf3 {[%clk 0:02:37]}  Qc7 {[%clk 0:02:52]} 13. Be5 {[%clk 0:02:37]}  Qc8 {[%clk 0:02:51]} 14. Qe2 {[%clk 0:02:36]}  b6 {[%clk 0:02:51]} 15. Rad1 {[%clk 0:02:36]}  Qe6 {[%clk 0:02:51]} 16. c4 {[%clk 0:02:34]}  Rad8 {[%clk 0:02:50]} 17. Qb2 {[%clk 0:02:34]}  Rfe8 {[%clk 0:02:44]} 18. h3 {[%clk 0:02:33]}  h6 {[%clk 0:02:43]} 19. Rfe1 {[%clk 0:02:33]}  Rd7 {[%clk 0:02:40]} 20. Rd2 {[%clk 0:02:21]}  Red8 {[%clk 0:02:40]} 21. Red1 {[%clk 0:02:21]}  Nh5 {[%clk 0:02:37]} 22. Bxg7 {[%clk 0:02:20]}  Nxg7 {[%clk 0:02:38]} 23. cxd5 {[%clk 0:02:14]}  Rxd5 {[%clk 0:02:36]} 24. d4 {[%clk 0:02:13]}  Qf6 {[%clk 0:02:30]} 25. Qc2 {[%clk 0:02:09]}  Rc8 {[%clk 0:02:23]} 26. Qb2 {[%clk 0:01:59]}  Ne6 {[%clk 0:02:21]} 27. Qb1 {[%clk 0:01:47]}  Kg7 {[%clk 0:01:56]} 28. Qe4 {[%clk 0:01:43]}  Rcd8 {[%clk 0:01:48]} 29. dxc5 {[%clk 0:01:41]}  Rxd2 {[%clk 0:01:48]} 30. Rxd2 {[%clk 0:01:42]}  Nxc5 {[%clk 0:01:48]} 31. Qc2 {[%clk 0:01:27]}  Rxd2 {[%clk 0:01:42]} 32. Qxd2 {[%clk 0:01:26]}  e5 {[%clk 0:01:33]} 33. Qd5 {[%clk 0:01:20]}  e4 {[%clk 0:01:28]} 34. Nd4 {[%clk 0:01:15]}  Nd3 {[%clk 0:01:28]} 35. Qxe4 {[%clk 0:00:56]}  Qxf2+ {[%clk 0:01:27]} 36. Kh2 {[%clk 0:00:55]}  Nc5 {[%clk 0:01:26]} 37. Qe5+ {[%clk 0:00:51]}  Qf6 {[%clk 0:01:25]} 38. Qxf6+ {[%clk 0:00:32]}  Kxf6 {[%clk 0:01:26]} 39. Kg3 {[%clk 0:00:32]}  a5 {[%clk 0:01:13]} 40. Kf4 {[%clk 0:00:31]}  h5 {[%clk 0:01:04]} 41. e4 {[%clk 0:00:28]}  Nd3+ {[%clk 0:00:54]} 42. Ke3 {[%clk 0:00:27]}  Nb4 {[%clk 0:00:54]} 43. a4 {[%clk 0:00:24]}  Ke5 {[%clk 0:00:47]} 44. Nf3+ {[%clk 0:00:24]}  Kd6 {[%clk 0:00:44]} 45. Ng5 {[%clk 0:00:20]}  f6 {[%clk 0:00:43]} 46. Nf3 {[%clk 0:00:20]}  Na6 {[%clk 0:00:43]} 47. Kd4 {[%clk 0:00:15]}  Nc5 {[%clk 0:00:43]} 48. Nd2 {[%clk 0:00:15]}  h4 {[%clk 0:00:41]} 49. Kc4 {[%clk 0:00:14]}  Ne6 {[%clk 0:00:41]} 50. Nf3 {[%clk 0:00:10]}  g5 {[%clk 0:00:40]} 51. Kb5 {[%clk 0:00:05]}  Kc7 {[%clk 0:00:40]} 52. e5 {[%clk 0:00:05]}  f5 {[%clk 0:00:39]} 53. Kc4 {[%clk 0:00:04]}  Kd7 {[%clk 0:00:32]} 54. Kd5 {[%clk 0:00:03]}  Nf4+ {[%clk 0:00:32]} 55. Kd4 {[%clk 0:00:02]}  Ne6+ {[%clk 0:00:26]} 56. Kd5 {[%clk 0:00:02]}  Nf4+ {[%clk 0:00:20]} 57. Kd4 {[%clk 0:00:03]}  Nxg2 {[%clk 0:00:21]} 58. Nxg5 {[%clk 0:00:03]}  Nf4 {[%clk 0:00:21]} 59. e6+ {[%clk 0:00:03]}  Nxe6+ {[%clk 0:00:21]} 60. Nxe6 {[%clk 0:00:02]}  Kxe6 {[%clk 0:00:22]} 61. Ke3 {[%clk 0:00:02]}  Ke5 {[%clk 0:00:22]} 62. Kf3 {[%clk 0:00:02]}  f4 {[%clk 0:00:23]} 63. Kg4 {[%clk 0:00:02]}  Ke4 {[%clk 0:00:24]} 64. Kxh4 {[%clk 0:00:02]}  f3 {[%clk 0:00:24]} 0-1


[Site "https://www.chess.com"]

[Event "Titled Tuesday Blitz April 26 Late 2022"]
[White "Stevens, Christian"]
[Black "Li, Ben"]
[WhiteFideId "2604450"]
[BlackFideId "2089980"]
[WhiteElo "2570"]
[BlackElo "2267"]
[Result "0-1"]
[Round "06"]
[TimeControl "180+1"]
[Date "2022.04.26"]
[WhiteClock "0:00:01"]
[BlackClock "0:00:42"]

1. Nf3 {[%clk 0:02:52]}  d5 {[%clk 0:02:59]} 2. e3 {[%clk 0:02:51]}  Nf6 {[%clk 0:02:55]} 3. c4 {[%clk 0:02:51]}  e6 {[%clk 0:02:55]} 4. Nc3 {[%clk 0:02:50]}  a6 {[%clk 0:02:55]} 5. d4 {[%clk 0:02:50]}  dxc4 {[%clk 0:02:54]} 6. Bxc4 {[%clk 0:02:50]}  b5 {[%clk 0:02:55]} 7. Bb3 {[%clk 0:02:50]}  Bb7 {[%clk 0:02:55]} 8. O-O {[%clk 0:02:50]}  c5 {[%clk 0:02:54]} 9. Qe2 {[%clk 0:02:45]}  Nbd7 {[%clk 0:02:53]} 10. Rd1 {[%clk 0:02:45]}  cxd4 {[%clk 0:02:49]} 11. exd4 {[%clk 0:02:42]}  b4 {[%clk 0:02:33]} 12. d5 {[%clk 0:02:26]}  bxc3 {[%clk 0:02:10]} 13. dxe6 {[%clk 0:02:26]}  fxe6 {[%clk 0:02:11]} 14. Ng5 {[%clk 0:02:17]}  Qb6 {[%clk 0:01:57]} 15. Nxe6 {[%clk 0:02:12]}  Be7 {[%clk 0:01:46]} 16. Nxg7+ {[%clk 0:01:56]}  Kd8 {[%clk 0:01:46]} 17. Ne6+ {[%clk 0:01:50]}  Kc8 {[%clk 0:01:46]} 18. Qc4+ {[%clk 0:01:29]}  Qc6 {[%clk 0:01:45]} 19. Qxc6+ {[%clk 0:01:14]}  Bxc6 {[%clk 0:01:46]} 20. Nd4 {[%clk 0:01:14]}  Bb7 {[%clk 0:01:36]} 21. bxc3 {[%clk 0:01:07]}  Kb8 {[%clk 0:01:22]} 22. Bf4+ {[%clk 0:01:06]}  Ka7 {[%clk 0:01:21]} 23. Ne6 {[%clk 0:01:03]}  Rac8 {[%clk 0:01:16]} 24. Rab1 {[%clk 0:00:51]}  Rhg8 {[%clk 0:01:06]} 25. g3 {[%clk 0:00:29]}  Rg6 {[%clk 0:00:59]} 26. Ba4 {[%clk 0:00:23]}  Nc5 {[%clk 0:00:56]} 27. Be3 {[%clk 0:00:22]}  Ka8 {[%clk 0:00:56]} 28. Bxc5 {[%clk 0:00:06]}  Bxc5 {[%clk 0:00:57]} 29. Nxc5 {[%clk 0:00:04]}  Rxc5 {[%clk 0:00:57]} 30. Rd8+ {[%clk 0:00:04]}  Ka7 {[%clk 0:00:58]} 31. Bc2 {[%clk 0:00:05]}  Rg7 {[%clk 0:00:56]} 32. Rd6 {[%clk 0:00:02]}  Nd5 {[%clk 0:00:53]} 33. Be4 {[%clk 0:00:01]}  Nxc3 {[%clk 0:00:53]} 34. Rxb7+ {[%clk 0:00:01]}  Rxb7 {[%clk 0:00:52]} 35. Bxb7 {[%clk 0:00:01]}  Kxb7 {[%clk 0:00:52]} 36. Rh6 {[%clk 0:00:02]}  Rc7 {[%clk 0:00:52]} 37. a3 {[%clk 0:00:02]}  Nb1 {[%clk 0:00:51]} 38. a4 {[%clk 0:00:03]}  Nc3 {[%clk 0:00:51]} 39. a5 {[%clk 0:00:03]}  Nd5 {[%clk 0:00:46]} 40. h4 {[%clk 0:00:03]}  Nb4 {[%clk 0:00:46]} 41. h5 {[%clk 0:00:02]}  Nc6 {[%clk 0:00:47]} 42. Rf6 {[%clk 0:00:02]}  Nxa5 {[%clk 0:00:46]} 43. g4 {[%clk 0:00:02]}  Rg7 {[%clk 0:00:41]} 44. f3 {[%clk 0:00:01]}  Nc6 {[%clk 0:00:42]} 45. Kf2 {[%clk 0:00:01]}  a5 {[%clk 0:00:42]} 0-1


[Site "https://www.chess.com"]

[Event "Titled Tuesday Blitz April 26 Late 2022"]
[White "Svane, Rasmus"]
[Black "Svane, Frederik"]
[WhiteFideId "4657101"]
[BlackFideId "12923044"]
[WhiteElo "2645"]
[BlackElo "2459"]
[Result "1-0"]
[Round "06"]
[TimeControl "180+1"]
[Date "2022.04.26"]
[WhiteClock "0:00:15"]
[BlackClock "0:00:09"]

1. Nf3 {[%clk 0:03:00]}  d5 {[%clk 0:02:59]} 2. g3 {[%clk 0:03:01]}  b6 {[%clk 0:02:59]} 3. Bg2 {[%clk 0:03:00]}  Bb7 {[%clk 0:02:59]} 4. O-O {[%clk 0:03:01]}  e6 {[%clk 0:02:58]} 5. d4 {[%clk 0:03:00]}  Nf6 {[%clk 0:02:55]} 6. Ne5 {[%clk 0:02:58]}  Qc8 {[%clk 0:02:52]} 7. Bg5 {[%clk 0:02:53]}  Be7 {[%clk 0:02:51]} 8. Nd2 {[%clk 0:02:51]}  O-O {[%clk 0:02:50]} 9. Rc1 {[%clk 0:02:52]}  c5 {[%clk 0:02:45]} 10. dxc5 {[%clk 0:02:37]}  h6 {[%clk 0:02:33]} 11. Bxf6 {[%clk 0:02:29]}  Bxf6 {[%clk 0:02:34]} 12. Nd3 {[%clk 0:02:30]}  bxc5 {[%clk 0:02:23]} 13. c4 {[%clk 0:02:30]}  d4 {[%clk 0:02:22]} 14. Bxb7 {[%clk 0:02:08]}  Qxb7 {[%clk 0:02:23]} 15. Nb3 {[%clk 0:01:31]}  Na6 {[%clk 0:02:21]} 16. Ndxc5 {[%clk 0:01:28]}  Nxc5 {[%clk 0:02:21]} 17. Nxc5 {[%clk 0:01:29]}  Qxb2 {[%clk 0:02:21]} 18. Qc2 {[%clk 0:01:29]}  Qxc2 {[%clk 0:01:54]} 19. Rxc2 {[%clk 0:01:30]}  Rfc8 {[%clk 0:01:54]} 20. Nd3 {[%clk 0:01:21]}  Rc6 {[%clk 0:01:54]} 21. f4 {[%clk 0:01:21]}  Re8 {[%clk 0:01:52]} 22. Rb1 {[%clk 0:01:18]}  Re7 {[%clk 0:01:41]} 23. Kf2 {[%clk 0:01:16]}  g5 {[%clk 0:01:35]} 24. Rb5 {[%clk 0:01:13]}  Kg7 {[%clk 0:01:34]} 25. Kf3 {[%clk 0:01:13]}  Kg6 {[%clk 0:01:33]} 26. Nb4 {[%clk 0:01:06]}  Rb6 {[%clk 0:01:30]} 27. a4 {[%clk 0:01:05]}  Reb7 {[%clk 0:01:07]} 28. Nd3 {[%clk 0:01:05]}  a6 {[%clk 0:01:04]} 29. Rxb6 {[%clk 0:01:05]}  Rxb6 {[%clk 0:01:05]} 30. c5 {[%clk 0:01:06]}  Rb8 {[%clk 0:01:00]} 31. c6 {[%clk 0:01:02]}  Rc8 {[%clk 0:00:48]} 32. Ke4 {[%clk 0:01:00]}  Bd8 {[%clk 0:00:39]} 33. Ne5+ {[%clk 0:00:58]}  Kf6 {[%clk 0:00:39]} 34. Kxd4 {[%clk 0:00:56]}  Bb6+ {[%clk 0:00:39]} 35. Ke4 {[%clk 0:00:56]}  Ke7 {[%clk 0:00:39]} 36. Rb2 {[%clk 0:00:53]}  Bc7 {[%clk 0:00:30]} 37. Nc4 {[%clk 0:00:47]}  Rb8 {[%clk 0:00:16]} 38. Rxb8 {[%clk 0:00:39]}  Bxb8 {[%clk 0:00:17]} 39. fxg5 {[%clk 0:00:31]}  hxg5 {[%clk 0:00:18]} 40. h4 {[%clk 0:00:30]}  Bxg3 {[%clk 0:00:18]} 41. hxg5 {[%clk 0:00:23]}  Bh4 {[%clk 0:00:10]} 42. Ne5 {[%clk 0:00:19]}  Kd6 {[%clk 0:00:05]} 43. Nxf7+ {[%clk 0:00:20]}  Kxc6 {[%clk 0:00:06]} 44. Ke5 {[%clk 0:00:19]}  Kd7 {[%clk 0:00:05]} 45. Kf6 {[%clk 0:00:18]}  a5 {[%clk 0:00:05]} 46. Ne5+ {[%clk 0:00:18]}  Kd6 {[%clk 0:00:06]} 47. Nc4+ {[%clk 0:00:19]}  Kc5 {[%clk 0:00:07]} 48. Nxa5 {[%clk 0:00:19]}  Kb4 {[%clk 0:00:07]} 49. Nb7 {[%clk 0:00:16]}  Kxa4 {[%clk 0:00:08]} 50. Nc5+ {[%clk 0:00:16]}  Kb5 {[%clk 0:00:09]} 51. Nxe6 {[%clk 0:00:17]}  Kc4 {[%clk 0:00:09]} 52. Kf5 {[%clk 0:00:15]} 1-0


[Site "https://www.chess.com"]

[Event "Titled Tuesday Blitz April 26 Late 2022"]
[White "Vega Gutierrez, Sabrina"]
[Black "Maltsevskaya, Aleksandra"]
[WhiteFideId "2219026"]
[BlackFideId "24174041"]
[WhiteElo "2286"]
[BlackElo "2235"]
[Result "0-1"]
[Round "06"]
[TimeControl "180+1"]
[Date "2022.04.26"]
[WhiteClock "0:00:02"]
[BlackClock "0:00:23"]

1. e4 {[%clk 0:03:00]}  c5 {[%clk 0:02:52]} 2. Nf3 {[%clk 0:03:01]}  e6 {[%clk 0:02:52]} 3. d4 {[%clk 0:03:01]}  cxd4 {[%clk 0:02:53]} 4. Nxd4 {[%clk 0:03:02]}  Nf6 {[%clk 0:02:52]} 5. Nc3 {[%clk 0:03:01]}  Nc6 {[%clk 0:02:53]} 6. Nxc6 {[%clk 0:03:00]}  bxc6 {[%clk 0:02:54]} 7. e5 {[%clk 0:03:00]}  Nd5 {[%clk 0:02:54]} 8. Ne4 {[%clk 0:03:01]}  Qc7 {[%clk 0:02:54]} 9. f4 {[%clk 0:03:00]}  Qb6 {[%clk 0:02:55]} 10. c4 {[%clk 0:02:59]}  Bb4+ {[%clk 0:02:55]} 11. Ke2 {[%clk 0:03:00]}  f5 {[%clk 0:02:56]} 12. Nf2 {[%clk 0:02:59]}  Ne7 {[%clk 0:02:56]} 13. Be3 {[%clk 0:02:50]}  Bc5 {[%clk 0:02:56]} 14. Bxc5 {[%clk 0:02:36]}  Qxc5 {[%clk 0:02:57]} 15. Kf3 {[%clk 0:02:36]}  g5 {[%clk 0:02:55]} 16. Qd6 {[%clk 0:02:27]}  Qb6 {[%clk 0:02:55]} 17. Nd3 {[%clk 0:02:14]}  Ng6 {[%clk 0:02:47]} 18. fxg5 {[%clk 0:01:58]}  a5 {[%clk 0:02:39]} 19. h4 {[%clk 0:01:58]}  Ba6 {[%clk 0:02:39]} 20. h5 {[%clk 0:01:56]}  Ne7 {[%clk 0:02:38]} 21. b3 {[%clk 0:01:43]}  a4 {[%clk 0:02:37]} 22. Nc5 {[%clk 0:01:41]}  Bc8 {[%clk 0:02:32]} 23. Bd3 {[%clk 0:01:32]}  Rg8 {[%clk 0:02:27]} 24. g6 {[%clk 0:01:29]}  hxg6 {[%clk 0:02:28]} 25. hxg6 {[%clk 0:01:29]}  Ra5 {[%clk 0:02:02]} 26. Rh7 {[%clk 0:01:27]}  Nxg6 {[%clk 0:01:23]} 27. Nxd7 {[%clk 0:00:45]}  Nh4+ {[%clk 0:01:19]} 28. Rxh4 {[%clk 0:00:45]}  Bxd7 {[%clk 0:01:19]} 29. Rh7 {[%clk 0:00:45]}  Ra7 {[%clk 0:01:16]} 30. Rah1 {[%clk 0:00:43]}  Qd8 {[%clk 0:00:47]} 31. R1h6 {[%clk 0:00:18]}  axb3 {[%clk 0:00:35]} 32. Rxe6+ {[%clk 0:00:14]}  Bxe6 {[%clk 0:00:34]} 33. Qxe6+ {[%clk 0:00:15]}  Kf8 {[%clk 0:00:33]} 34. Qxf5+ {[%clk 0:00:07]}  Ke8 {[%clk 0:00:33]} 35. Qe6+ {[%clk 0:00:07]}  Kf8 {[%clk 0:00:32]} 36. Qf5+ {[%clk 0:00:06]}  Ke8 {[%clk 0:00:28]} 37. Rxa7 {[%clk 0:00:06]}  Rf8 {[%clk 0:00:26]} 38. Kg4 {[%clk 0:00:03]}  Qd4+ {[%clk 0:00:23]} 39. Kg5 {[%clk 0:00:02]}  Rxf5+ {[%clk 0:00:23]} 40. Bxf5 {[%clk 0:00:02]}  Qxa7 {[%clk 0:00:23]} 0-1


[Site "https://www.chess.com"]

[Event "Titled Tuesday Blitz April 26 Late 2022"]
[White "Veiga, Emerson de Sousa"]
[Black "Torres Cueto, Jesus Marcial"]
[WhiteFideId "2151898"]
[BlackFideId "4415280"]
[WhiteElo "2034"]
[BlackElo "2055"]
[Result "1-0"]
[Round "06"]
[TimeControl "180+1"]
[Date "2022.04.26"]
[WhiteClock "0:00:58"]
[BlackClock "0:00:49"]

1. e4 {[%clk 0:02:59]}  e6 {[%clk 0:03:00]} 2. d4 {[%clk 0:02:58]}  d5 {[%clk 0:03:00]} 3. Nc3 {[%clk 0:02:57]}  Bb4 {[%clk 0:02:59]} 4. Ne2 {[%clk 0:02:56]}  dxe4 {[%clk 0:02:55]} 5. a3 {[%clk 0:02:56]}  Be7 {[%clk 0:02:55]} 6. Nxe4 {[%clk 0:02:54]}  Nd7 {[%clk 0:02:56]} 7. Bf4 {[%clk 0:02:47]}  Ngf6 {[%clk 0:02:54]} 8. Nxf6+ {[%clk 0:02:47]}  Nxf6 {[%clk 0:02:54]} 9. Qd2 {[%clk 0:02:47]}  O-O {[%clk 0:02:54]} 10. O-O-O {[%clk 0:02:47]}  b6 {[%clk 0:02:52]} 11. Ng3 {[%clk 0:02:44]}  Bb7 {[%clk 0:02:52]} 12. Bd3 {[%clk 0:02:42]}  Bxg2 {[%clk 0:02:49]} 13. Rhg1 {[%clk 0:02:41]}  Bf3 {[%clk 0:02:49]} 14. Rde1 {[%clk 0:02:42]}  Nd5 {[%clk 0:02:48]} 15. Kb1 {[%clk 0:02:37]}  g6 {[%clk 0:02:43]} 16. h4 {[%clk 0:02:33]}  Bxh4 {[%clk 0:02:40]} 17. Bh6 {[%clk 0:02:32]}  Re8 {[%clk 0:02:30]} 18. c4 {[%clk 0:02:31]}  Bf6 {[%clk 0:01:44]} 19. cxd5 {[%clk 0:02:30]}  exd5 {[%clk 0:01:39]} 20. Qf4 {[%clk 0:02:26]}  Be4 {[%clk 0:01:33]} 21. Bxe4 {[%clk 0:02:22]}  dxe4 {[%clk 0:01:33]} 22. Nxe4 {[%clk 0:02:22]}  Bxd4 {[%clk 0:01:32]} 23. Rd1 {[%clk 0:01:59]}  c5 {[%clk 0:01:31]} 24. Nd6 {[%clk 0:01:31]}  Re7 {[%clk 0:01:10]} 25. Rxd4 {[%clk 0:01:30]}  cxd4 {[%clk 0:01:08]} 26. Qxd4 {[%clk 0:01:02]}  f6 {[%clk 0:01:05]} 27. Qd5+ {[%clk 0:01:02]}  Kh8 {[%clk 0:01:03]} 28. Nf7+ {[%clk 0:01:01]}  Rxf7 {[%clk 0:01:01]} 29. Qxf7 {[%clk 0:01:01]}  Qd3+ {[%clk 0:00:51]} 30. Ka1 {[%clk 0:00:59]}  Rg8 {[%clk 0:00:49]} 31. Qxf6+ {[%clk 0:00:58]} 1-0


[Site "https://www.chess.com"]

[Event "Titled Tuesday Blitz April 26 Late 2022"]
[White "Vidonyak, Roman"]
[Black "Baches Garcia, Guillermo"]
[WhiteFideId "14100622"]
[BlackFideId "2209764"]
[WhiteElo "2389"]
[BlackElo "2521"]
[Result "1-0"]
[Round "06"]
[TimeControl "180+1"]
[Date "2022.04.26"]
[WhiteClock "0:00:03"]
[BlackClock "0:00:07"]

1. d4 {[%clk 0:03:00]}  Nf6 {[%clk 0:02:59]} 2. c4 {[%clk 0:02:58]}  e6 {[%clk 0:03:00]} 3. Nc3 {[%clk 0:02:58]}  d5 {[%clk 0:03:01]} 4. cxd5 {[%clk 0:02:58]}  Nxd5 {[%clk 0:03:01]} 5. e4 {[%clk 0:02:58]}  Nxc3 {[%clk 0:03:02]} 6. bxc3 {[%clk 0:02:59]}  c5 {[%clk 0:03:02]} 7. a3 {[%clk 0:02:59]}  cxd4 {[%clk 0:02:59]} 8. cxd4 {[%clk 0:02:59]}  e5 {[%clk 0:02:59]} 9. Bb5+ {[%clk 0:02:46]}  Bd7 {[%clk 0:02:49]} 10. Bxd7+ {[%clk 0:02:45]}  Nxd7 {[%clk 0:02:46]} 11. Nf3 {[%clk 0:02:34]}  Bd6 {[%clk 0:02:35]} 12. O-O {[%clk 0:02:11]}  O-O {[%clk 0:02:34]} 13. d5 {[%clk 0:01:59]}  Rc8 {[%clk 0:02:21]} 14. Bb2 {[%clk 0:01:48]}  Qe7 {[%clk 0:02:13]} 15. Qa4 {[%clk 0:01:37]}  a6 {[%clk 0:01:44]} 16. Nd2 {[%clk 0:01:11]}  b5 {[%clk 0:01:31]} 17. Qb3 {[%clk 0:01:08]}  Nc5 {[%clk 0:01:28]} 18. Qe3 {[%clk 0:01:08]}  Na4 {[%clk 0:01:25]} 19. Qb3 {[%clk 0:00:55]}  Rc7 {[%clk 0:01:11]} 20. Rac1 {[%clk 0:00:35]}  Rfc8 {[%clk 0:01:10]} 21. Rxc7 {[%clk 0:00:28]}  Qxc7 {[%clk 0:01:07]} 22. Ba1 {[%clk 0:00:20]}  Qc2 {[%clk 0:01:01]} 23. Qe3 {[%clk 0:00:20]}  Qc5 {[%clk 0:00:47]} 24. Qf3 {[%clk 0:00:17]}  g6 {[%clk 0:00:35]} 25. g3 {[%clk 0:00:17]}  Qc2 {[%clk 0:00:30]} 26. Qe3 {[%clk 0:00:17]}  Bc5 {[%clk 0:00:27]} 27. Qe2 {[%clk 0:00:17]}  Bd4 {[%clk 0:00:23]} 28. Bxd4 {[%clk 0:00:16]}  exd4 {[%clk 0:00:24]} 29. Qe1 {[%clk 0:00:15]}  Nc3 {[%clk 0:00:20]} 30. d6 {[%clk 0:00:11]}  Rd8 {[%clk 0:00:17]} 31. e5 {[%clk 0:00:12]}  Qf5 {[%clk 0:00:16]} 32. f4 {[%clk 0:00:12]}  d3 {[%clk 0:00:15]} 33. Qe3 {[%clk 0:00:12]}  h5 {[%clk 0:00:14]} 34. Qb6 {[%clk 0:00:12]}  Rc8 {[%clk 0:00:13]} 35. Qb7 {[%clk 0:00:11]}  Ne2+ {[%clk 0:00:12]} 36. Kf2 {[%clk 0:00:10]}  Rc2 {[%clk 0:00:13]} 37. Qb8+ {[%clk 0:00:09]}  Kg7 {[%clk 0:00:12]} 38. Rd1 {[%clk 0:00:08]}  Nc3 {[%clk 0:00:11]} 39. Qb6 {[%clk 0:00:04]}  Nxd1+ {[%clk 0:00:11]} 40. Ke1 {[%clk 0:00:03]}  Nc3 {[%clk 0:00:10]} 41. Qd4 {[%clk 0:00:02]}  Nb1 {[%clk 0:00:09]} 42. Kf2 {[%clk 0:00:02]}  Rxd2+ {[%clk 0:00:08]} 43. Kg1 {[%clk 0:00:03]}  Qd7 {[%clk 0:00:08]} 44. e6+ {[%clk 0:00:03]}  f6 {[%clk 0:00:06]} 45. exd7 {[%clk 0:00:03]}  Rd1+ {[%clk 0:00:06]} 46. Kg2 {[%clk 0:00:03]}  d2 {[%clk 0:00:07]} 47. d8=Q {[%clk 0:00:04]}  Nc3 {[%clk 0:00:07]} 48. Q8xf6+ {[%clk 0:00:03]} 1-0


[Site "https://www.chess.com"]